bitfinex-derivatives/quotes_BTCF0:USTF0_20250119
["timestamp","ask_amount","ask_price","bid_price","bid_amount"]
[1737327010195,0.02642771,102160.0,102150.0,0.3608]
[1737327011600,0.02447,102160.0,102150.0,0.3608]
[1737327012301,0.02447,102160.0,102150.0,0.4049114]
[1737327012496,0.02447,102160.0,102150.0,0.7049114]
[1737327012806,0.1,102200.0,102150.0,0.87743984]
[1737327013097,0.1,102200.0,102180.0,0.53332844]
[1737327013294,0.1,102200.0,102190.0,0.3608]
[1737327013489,0.1,102200.0,102190.0,0.4049114]
[1737327014595,0.1,102200.0,102190.0,0.7049114]
[1737327014801,0.409756,102250.0,102190.0,0.70488561]
[1737327014802,0.048956,102250.0,102190.0,0.70488561]
[1737327015102,0.048956,102250.0,102240.0,0.3608]
[1737327015307,0.048956,102250.0,102240.0,0.76568627]
[1737327015597,0.3608,102260.0,102240.0,0.40488627]
[1737327015797,0.3608,102270.0,102240.0,0.40488627]
[1737327015997,0.409755,102250.0,102240.0,0.04408627]
[1737327016210,0.048955,102250.0,102240.0,0.40488627]
[1737327016397,0.3608,102250.0,102210.0,0.3608]
[1737327016598,0.3608,102220.0,102180.0,0.3608]
[1737327016795,0.048981,102200.0,102180.0,0.3608]
[1737327016994,0.048981,102200.0,102190.0,0.3608]
[1737327017197,0.048984,102190.0,102170.0,0.3608]
[1737327017398,0.04899,102180.0,102150.0,0.53332844]
[1737327017593,0.409794,102170.0,102140.0,0.36226811]
[1737327018107,0.3608,102160.0,102140.0,0.36226811]
[1737327018405,0.049003,102150.0,102140.0,0.36226811]
[1737327018992,0.049003,102150.0,102140.0,0.3608]
[1737327019202,0.049015,102130.0,102100.0,0.1]
[1737327019400,0.3608,102110.0,102100.0,0.1]
[1737327019601,0.409819,102120.0,102100.0,0.1]
[1737327019902,0.3608,102110.0,102100.0,0.1]
[1737327020109,0.38532444,102110.0,102100.0,0.1]
[1737327020499,0.38532444,102110.0,102100.0,0.09485269]
[1737327020802,0.38532444,102110.0,102060.0,8.182e-05]
[1737327021103,0.40984,102080.0,102060.0,8.182e-05]
[1737327021301,0.049042,102070.0,102060.0,8.182e-05]
[1737327021502,0.049042,102070.0,102050.0,0.3608]
[1737327021709,0.049051,102050.0,102040.0,0.3608]
[1737327022201,0.049051,102050.0,102030.0,0.3608]
[1737327022400,0.049051,102050.0,102020.0,0.3622698]
[1737327022602,0.3608,102060.0,102030.0,0.3608]
[1737327022603,0.049057,102040.0,102030.0,0.3608]
[1737327022799,0.049057,102040.0,102020.0,0.3622698]
[1737327023009,0.049057,102040.0,102030.0,0.3608]
[1737327023199,0.049057,102040.0,102020.0,0.3622698]
[1737327023404,0.3608,102030.0,102020.0,0.0014698]
[1737327024109,0.409861,102030.0,102020.0,0.0014698]
[1737327024506,0.3608,102030.0,102020.0,0.0014698]
[1737327024805,0.049056,102040.0,102020.0,0.0014698]
[1737327025011,0.409861,102030.0,102020.0,0.0014698]
[1737327026010,0.049066,102020.0,102000.0,0.1]
[1737327026212,0.7216,102010.0,102000.0,0.1]
[1737327026402,0.770671,102010.0,102000.0,0.1]
[1737327026603,0.409875,102000.0,101940.0,0.20731263]
[1737327026804,0.3608,101970.0,101940.0,0.20731263]
[1737327027007,0.3608,101970.0,101930.0,0.22]
[1737327027405,0.3608,101970.0,101910.0,0.56958396]
[1737327027706,0.3608,101930.0,101910.0,0.00147133]
[1737327027905,0.36092458,101920.0,101890.0,0.36089694]
[1737327028099,0.36088147,101910.0,101890.0,9.694e-05]
[1737327028302,0.3608,101910.0,101890.0,9.694e-05]
[1737327028507,0.36091606,101900.0,101890.0,9.694e-05]
[1737327028704,0.36087485,101900.0,101870.0,0.3608]
[1737327028904,0.3608,101900.0,101870.0,0.3608]
[1737327029112,0.71320563,101970.0,101830.0,0.3608]
[1737327029113,0.3608,101880.0,101830.0,0.3608]
[1737327029312,0.3608,101860.0,101830.0,0.3608]
[1737327029611,0.3608,101840.0,101820.0,0.56820748]
[1737327029807,0.049178,101790.0,101730.0,0.3608]
[1737327030010,0.3608,101750.0,101740.0,0.00196579]
[1737327030303,0.3608,101770.0,101740.0,0.02653708]
[1737327030701,0.3608,101770.0,101740.0,0.68733708]
[1737327031008,0.2382,101820.0,101760.0,0.7216]
[1737327031205,0.3608,101860.0,101810.0,0.3608]
[1737327031406,0.3608,101870.0,101820.0,0.3608]
[1737327031603,0.409934,101880.0,101820.0,0.3608]
[1737327031797,0.3608,101880.0,101820.0,0.3608]
[1737327032008,0.3608,101880.0,101830.0,0.3608]
[1737327032009,0.3608,101870.0,101830.0,0.3608]
[1737327032203,0.3608,101850.0,101790.0,0.3608]
[1737327032504,0.3608,101820.0,101780.0,0.00011068]
[1737327032811,0.3608,101810.0,101780.0,0.00011068]
[1737327033407,0.36088181,101800.0,101780.0,0.00011068]
[1737327033603,0.3608,101790.0,101780.0,0.00011068]
[1737327033799,0.3608,101790.0,101740.0,0.00196579]
[1737327034011,0.3608,101780.0,101740.0,0.00196579]
[1737327034211,0.3608,101770.0,101720.0,0.3608]
[1737327034607,0.3608,101760.0,101720.0,0.3608]
[1737327034809,0.3608,101760.0,101710.0,0.3608]
[1737327034810,0.3608,101750.0,101710.0,0.3608]
[1737327035108,0.3608,101730.0,101700.0,0.1]
[1737327035300,0.3608,101760.0,101740.0,0.049197]
[1737327035505,0.00010713,101750.0,101700.0,0.4608]
[1737327035916,0.00010713,101750.0,101720.0,0.3608]
[1737327036215,0.00010713,101750.0,101710.0,0.3608]
[1737327036413,7.249e-05,101740.0,101710.0,0.3608]
[1737327036715,9.079e-05,101730.0,101710.0,0.3608]
[1737327037006,9.079e-05,101730.0,101700.0,0.4608]
[1737327037209,0.00011464,101720.0,101700.0,0.4608]
[1737327037510,0.00011464,101720.0,101700.0,0.1]
[1737327037511,0.00011253,101710.0,101700.0,0.1]
[1737327037812,0.3608,101710.0,101680.0,0.0001212]
[1737327038012,0.3608,101700.0,101680.0,0.0001212]
[1737327038808,0.049211,101720.0,101680.0,0.0001212]
[1737327038809,0.00011059,101690.0,101680.0,0.0001212]
[1737327039008,0.283002,101740.0,101680.0,1.19597464]
[1737327039207,0.2203,101770.0,101680.0,1.19597464]
[1737327039208,0.39455344,101770.0,101730.0,0.7216]
[1737327039511,0.4608,101800.0,101760.0,0.3608]
[1737327039704,0.1,101800.0,101780.0,0.3608]
[1737327040016,0.04914,101870.0,101790.0,0.3608]
[1737327040212,0.27425344,101900.0,101860.0,0.7216]
[1737327040413,0.1,101900.0,101890.0,0.3608]
[1737327041611,0.049108,101940.0,101890.0,1.19585344]
[1737327041909,0.42833336,101960.0,101920.0,0.3608]
[1737327042114,0.22332844,102010.0,101940.0,0.3608]
[1737327042310,0.049087,101980.0,101950.0,0.3608]
[1737327042507,0.00196078,102000.0,101950.0,0.3608]
[1737327042708,0.049087,101980.0,101960.0,0.3608]
[1737327043007,0.00196078,102000.0,101970.0,0.3608]
[1737327043210,0.00196078,102000.0,101990.0,0.7216]
[1737327043609,0.4509,102060.0,102010.0,0.35883922]
[1737327043812,0.4509,102060.0,102050.0,0.3608]
[1737327044017,0.2489266,102060.0,102020.0,0.3608]
[1737327044315,0.2313,102060.0,102030.0,0.3608]
[1737327044513,0.280351,102060.0,102030.0,0.3608]
[1737327044918,0.280351,102060.0,101980.0,0.2079768]
[1737327044919,0.049057,102040.0,101990.0,0.3608]
[1737327045111,0.3608,102050.0,102000.0,0.3608]
[1737327045415,0.409871,102010.0,101940.0,0.3608]
[1737327045610,0.3608,101990.0,101930.0,0.4195768]
[1737327045916,0.2546,102050.0,101920.0,0.2079768]
[1737327045917,0.3608,101940.0,101920.0,0.2079768]
[1737327046224,0.3608,101930.0,101920.0,0.2079768]
[1737327046713,0.3608,101930.0,101900.0,7.331e-05]
[1737327047019,0.7216,101910.0,101900.0,7.331e-05]
[1737327047213,0.7216,101910.0,101880.0,0.00147177]
[1737327047415,0.3608,101890.0,101880.0,0.00147177]
[1737327048007,0.3608,101890.0,101830.0,0.56885008]
[1737327048214,0.3608,101860.0,101830.0,0.36087328]
[1737327048523,0.3608,101850.0,101830.0,7.328e-05]
[1737327049116,0.049103,101950.0,101830.0,7.328e-05]
[1737327049117,0.3608,101900.0,101830.0,0.50805008]
[1737327049319,0.3608,101900.0,101860.0,0.2079768]
[1737327049513,0.3608,101940.0,101890.0,0.5687768]
[1737327050016,0.3608,101950.0,101920.0,0.3608]
[1737327050210,0.00196193,101940.0,101890.0,0.3608]
[1737327050410,0.3608,101920.0,101880.0,0.37552]
[1737327050823,0.36276193,101940.0,101900.0,0.3608]
[1737327051320,0.00196193,101940.0,101900.0,0.2079768]
[1737327051614,0.00196193,101940.0,101900.0,0.5079768]
[1737327051820,0.3608,101970.0,101930.0,0.2079768]
[1737327052019,0.3608,101970.0,101930.0,0.5226968]
[1737327052215,0.3608,101990.0,101960.0,0.2079768]
[1737327052520,0.36276097,101990.0,101960.0,0.2079768]
[1737327052714,0.36276097,101990.0,101960.0,0.3]
[1737327053117,0.36276097,101990.0,101950.0,0.5687768]
[1737327053514,0.3608,101990.0,101960.0,0.3608]
[1737327053722,0.3608,101980.0,101950.0,0.5687768]
[1737327053913,0.3608,101980.0,101950.0,0.2079768]
[1737327054115,0.3608,101970.0,101950.0,0.2079768]
[1737327055415,0.3608,101980.0,101950.0,0.8687768]
[1737327055720,0.3608,101970.0,101950.0,0.2079768]
[1737327055919,0.3608,101970.0,101940.0,0.01472]
[1737327056312,0.3608,102010.0,101960.0,0.3608]
[1737327056519,0.3608,102040.0,101990.0,0.3608]
[1737327056715,0.29423915,102030.0,102000.0,0.3608]
[1737327057220,0.3608,102110.0,102020.0,0.3608]
[1737327057419,0.049016,102130.0,102060.0,0.3608]
[1737327057620,0.049025,102110.0,102050.0,0.3608]
[1737327057810,0.3608,102070.0,102030.0,0.3608]
[1737327058010,0.3608,102040.0,102000.0,0.36088871]
[1737327058415,0.2675,102050.0,102000.0,0.36088871]
[1737327058617,0.3608,102030.0,102000.0,0.36088871]
[1737327058815,0.3608,102020.0,102000.0,0.36088871]
[1737327059017,0.3608,102020.0,102000.0,8.871e-05]
[1737327059218,0.3608,102010.0,102000.0,8.871e-05]
[1737327059418,0.3608,102010.0,101960.0,0.20944754]
[1737327059419,0.3608,102010.0,101970.0,0.3608]
[1737327059620,0.3608,102000.0,101970.0,0.3608]
[1737327060525,0.3608,102000.0,101960.0,0.20944754]
[1737327060821,0.3608,102000.0,101960.0,0.00147074]
[1737327061017,0.2682,101990.0,101960.0,0.00147074]
[1737327061228,0.2682,101990.0,101970.0,0.3608]
[1737327061529,7.09e-05,101980.0,101970.0,0.3608]
[1737327062719,7.09e-05,101980.0,101960.0,0.57024754]
[1737327062917,0.049099,101960.0,101910.0,0.17318733]
[1737327063126,0.3608,101920.0,101910.0,0.17318733]
[1737327063432,0.049099,101960.0,101910.0,0.17318733]
[1737327063619,0.409899,101960.0,101930.0,0.17318733]
[1737327063822,0.7216,101940.0,101930.0,0.17318733]
[1737327064017,0.7216,101940.0,101910.0,0.17318733]
[1737327064219,0.3608,101930.0,101900.0,0.36087512]
[1737327064416,0.3608,101940.0,101900.0,0.36087512]
[1737327064417,0.049099,101960.0,101920.0,0.17318733]
[1737327064620,0.3608,102030.0,101990.0,0.17318733]
[1737327064922,0.343459,102000.0,101980.0,0.3608]
[1737327065121,0.343459,102000.0,101980.0,0.53398733]
[1737327065329,0.343459,102000.0,101990.0,0.3608]
[1737327065725,0.34356138,102000.0,101990.0,0.3608]
[1737327065926,0.343459,102000.0,101990.0,0.3608]
[1737327067328,0.343459,102000.0,101980.0,0.3608]
[1737327067527,0.343459,102000.0,101990.0,0.3608]
[1737327067831,0.3608,102010.0,101990.0,0.3608]
[1737327068029,0.049063,102030.0,102000.0,0.3608]
[1737327068225,0.343459,102020.0,102000.0,0.3608]
[1737327068427,0.704259,102020.0,101980.0,0.53398733]
[1737327068623,0.704259,102020.0,101990.0,0.3608]
[1737327069122,0.343459,102020.0,102000.0,0.3608]
[1737327069325,9.576e-05,102010.0,102000.0,0.3608]
[1737327069528,0.343459,102010.0,101980.0,0.3608]
[1737327069730,0.343459,102010.0,101990.0,0.3608]
[1737327070227,0.343459,102010.0,102000.0,0.3608]
[1737327070432,0.00010238,102010.0,102000.0,0.3608]
[1737327073335,0.02460238,102010.0,102000.0,0.3608]
[1737327073940,0.02460238,102010.0,102000.0,0.67552]
[1737327074440,0.5448,102060.0,102000.0,0.37552]
[1737327074635,0.593848,102060.0,102030.0,0.3608]
[1737327074840,0.343459,102030.0,102010.0,0.3608]
[1737327075040,0.343459,102030.0,102020.0,0.3608]
[1737327075443,0.3608,102040.0,102020.0,0.3608]
[1737327075631,0.343459,102040.0,102020.0,0.3608]
[1737327076845,0.2744,102070.0,102020.0,0.3608]
[1737327077032,0.343459,102050.0,102020.0,0.3608]
[1737327077232,0.343459,102050.0,102030.0,0.3608]
[1737327077838,0.409837,102080.0,102030.0,0.53398733]
[1737327078140,0.3608,102070.0,102030.0,0.53398733]
[1737327078741,0.343459,102050.0,102040.0,0.3608]
[1737327078946,0.343459,102050.0,102020.0,0.3608]
[1737327079444,0.343459,102050.0,102040.0,0.3608]
[1737327080947,0.343459,102050.0,102030.0,0.3608]
[1737327081142,0.367949,102050.0,102030.0,0.3608]
[1737327081542,0.367949,102050.0,102040.0,0.3608]
[1737327083441,0.02449,102050.0,102040.0,0.3608]
[1737327087045,0.02449,102050.0,102040.0,0.6608]
[1737327087246,0.1,102100.0,102040.0,0.67552]
[1737327087455,0.343459,102090.0,102080.0,0.3608]
[1737327087749,0.343459,102090.0,102080.0,0.7216]
[1737327087953,0.1,102100.0,102080.0,0.7216]
[1737327088349,0.1,102100.0,102090.0,0.3608]
[1737327088653,0.309913,102130.0,102090.0,0.3608]
[1737327088654,0.6908,102140.0,102090.0,0.409832]
[1737327088847,0.343459,102120.0,102110.0,0.409819]
[1737327089049,0.343459,102120.0,102110.0,0.3608]
[1737327089546,0.367939,102120.0,102110.0,0.409823]
[1737327090149,0.02448,102120.0,102110.0,0.409823]
[1737327090451,0.63398733,102200.0,102150.0,0.049003]
[1737327090650,0.63594427,102200.0,102170.0,0.3608]
[1737327090851,0.343459,102170.0,102160.0,0.3608]
[1737327091050,0.343459,102180.0,102150.0,0.3608]
[1737327091259,0.343459,102190.0,102180.0,0.048987]
[1737327091449,0.343459,102190.0,102180.0,0.409787]
[1737327092153,0.1154248,102200.0,102180.0,0.3608]
[1737327092458,0.10195694,102200.0,102190.0,0.409784]
[1737327092654,0.11492694,102200.0,102190.0,0.048984]
[1737327092858,0.11492694,102200.0,102190.0,0.58297133]
[1737327093160,0.01332627,102210.0,102200.0,0.048979]
[1737327093453,0.00233821,102240.0,102210.0,0.048975]
[1737327093658,0.343459,102230.0,102210.0,0.048975]
[1737327093954,0.343459,102230.0,102210.0,0.409775]
[1737327094457,0.343459,102230.0,102220.0,0.048966]
[1737327095255,0.343459,102230.0,102220.0,0.409766]
[1737327095557,0.343459,102230.0,102220.0,0.048966]
[1737327095760,0.00233821,102240.0,102230.0,0.048965]
[1737327095956,0.34579721,102240.0,102230.0,0.048965]
[1737327096156,0.34579721,102240.0,102230.0,0.409765]
[1737327096361,0.00233821,102240.0,102230.0,0.409765]
[1737327096658,0.00233821,102240.0,102230.0,0.58295233]
[1737327096659,1e-08,102240.0,102230.0,0.58295233]
[1737327097451,1e-08,102240.0,102230.0,0.88295233]
[1737327097652,0.17318733,102280.0,102230.0,0.3608]
[1737327097853,0.936423,102280.0,102240.0,0.31095928]
[1737327098051,0.3608,102280.0,102240.0,0.31095928]
[1737327098361,0.0136633,102290.0,102250.0,0.3608]
[1737327098567,0.3608,102290.0,102250.0,0.3608]
[1737327098855,0.3608,102280.0,102250.0,0.3608]
[1737327099056,0.409745,102280.0,102230.0,0.3608]
[1737327099255,0.409745,102280.0,102230.0,0.53398733]
[1737327099457,0.3608,102280.0,102240.0,0.3608]
[1737327099661,0.47424922,102300.0,102250.0,0.53398733]
[1737327099862,0.3608,102280.0,102250.0,0.53398733]
[1737327100051,0.3608,102290.0,102260.0,0.3608]
[1737327100255,0.11344922,102300.0,102260.0,0.3608]
[1737327100759,0.11344922,102300.0,102270.0,0.53398733]
[1737327100966,0.1,102300.0,102280.0,0.3608]
[1737327101267,0.1,102300.0,102290.0,0.3608]
[1737327101460,0.52004968,102300.0,102280.0,0.3608]
[1737327101962,0.52004968,102300.0,102270.0,0.53398733]
[1737327101963,0.1,102300.0,102270.0,0.53398733]
[1737327102162,0.1,102300.0,102280.0,0.3608]
[1737327102360,0.1,102300.0,102290.0,0.53398733]
[1737327102361,0.06723524,102300.0,102290.0,0.53398733]
[1737327102560,0.06723524,102300.0,102290.0,0.17318733]
[1737327102762,0.06723524,102300.0,102290.0,0.3608]
[1737327103357,0.06723524,102300.0,102290.0,0.53398733]
[1737327105066,0.06723524,102300.0,102290.0,0.83398733]
[1737327105368,0.06723524,102300.0,102290.0,0.94463102]
[1737327105562,0.37450533,102350.0,102290.0,0.83398733]
[1737327105866,0.01370533,102350.0,102320.0,0.53398733]
[1737327106061,0.6733,102370.0,102340.0,0.3608]
[1737327106368,0.3125,102370.0,102340.0,0.3608]
[1737327106865,0.409692,102390.0,102350.0,0.3608]
[1737327107071,0.048892,102390.0,102350.0,0.3608]
[1737327107259,0.3608,102380.0,102350.0,0.3608]
[1737327107457,0.7862,102400.0,102340.0,0.53398733]
[1737327107666,0.3608,102380.0,102360.0,0.3608]
[1737327107864,0.83564301,102400.0,102360.0,0.3608]
[1737327108059,0.83564301,102400.0,102370.0,0.3608]
[1737327108060,0.3608,102390.0,102370.0,0.3608]
[1737327108261,0.1,102400.0,102380.0,0.3608]
[1737327108466,0.1,102400.0,102390.0,0.3608]
[1737327108669,0.11345633,102400.0,102390.0,0.3608]
[1737327108872,0.1,102400.0,102390.0,0.3608]
[1737327109374,0.3608,102450.0,102390.0,0.3608]
[1737327109574,0.3608,102450.0,102420.0,0.048872]
[1737327109962,0.3608,102450.0,102410.0,0.3608]
[1737327110165,0.3608,102440.0,102410.0,0.3608]
[1737327110367,0.3608,102420.0,102380.0,0.3608]
[1737327110567,0.3608,102400.0,102370.0,0.3608]
[1737327110768,0.7216,102380.0,102350.0,0.3608]
[1737327111063,0.048851,102470.0,102370.0,1.1015875]
[1737327111268,0.29308,102450.0,102440.0,0.409664]
[1737327111562,0.32444548,102470.0,102440.0,0.3608]
[1737327111763,0.32444548,102470.0,102390.0,0.048888]
[1737327111764,0.341947,102440.0,102390.0,0.3608]
[1737327111963,0.29308,102400.0,102390.0,0.3608]
[1737327112165,0.29316129,102400.0,102390.0,0.3608]
[1737327112367,8.129e-05,102400.0,102390.0,0.3608]
[1737327112570,2.9e-07,102400.0,102390.0,0.409688]
[1737327112974,0.3109,102430.0,102420.0,0.048873]
[1737327113169,0.01318243,102460.0,102420.0,0.53691964]
[1737327113476,0.38234,102490.0,102450.0,0.3608]
[1737327113477,0.34676042,102490.0,102450.0,0.3608]
[1737327113790,0.29308,102470.0,102460.0,0.3608]
[1737327113966,0.1,102500.0,102490.0,0.04884]
[1737327114374,0.75388,102500.0,102490.0,0.04884]
[1737327114877,0.75388,102500.0,102470.0,0.048849]
[1737327115076,0.29308,102480.0,102450.0,0.3608]
[1737327115275,0.3608,102460.0,102450.0,0.048857]
[1737327115676,0.409641,102490.0,102440.0,0.12724664]
[1737327115975,0.3608,102490.0,102460.0,0.12724664]
[1737327116175,0.7216,102470.0,102430.0,0.3608]
[1737327116377,0.409666,102440.0,102380.0,0.12724664]
[1737327116583,0.3608,102410.0,102400.0,0.12724664]
[1737327116785,0.3608,102440.0,102400.0,0.17170568]
[1737327117075,0.3608,102410.0,102360.0,0.53250568]
[1737327117270,7.914e-05,102400.0,102390.0,0.3608]
[1737327117470,7.914e-05,102400.0,102380.0,0.53250568]
[1737327117672,0.6676,102440.0,102390.0,0.3608]
[1737327117871,0.3608,102420.0,102410.0,0.17170568]
[1737327118073,0.6356,102470.0,102410.0,0.17170568]
[1737327118274,0.3608,102480.0,102430.0,0.17170568]
[1737327118481,0.3608,102470.0,102430.0,0.17170568]
[1737327118682,0.36084745,102460.0,102430.0,0.17170568]
[1737327119176,4.745e-05,102460.0,102450.0,0.17170568]
[1737327119978,4.745e-05,102460.0,102430.0,0.18484609]
[1737327120174,0.36084745,102460.0,102430.0,0.18484609]
[1737327120685,0.36084745,102460.0,102420.0,0.36090003]
[1737327120882,0.3608,102440.0,102420.0,0.00010003]
[1737327121579,0.36084745,102460.0,102420.0,0.00010003]
[1737327121776,0.3608,102450.0,102420.0,0.00010003]
[1737327121983,0.36084745,102460.0,102430.0,0.53250568]
[1737327122186,4.745e-05,102460.0,102450.0,0.17170568]
[1737327122376,0.6892,102480.0,102450.0,0.17170568]
[1737327122777,0.3608,102480.0,102470.0,0.17170568]
[1737327122978,0.1,102500.0,102470.0,0.17170568]
[1737327123181,0.3608,102490.0,102470.0,0.17170568]
[1737327123379,0.3608,102490.0,102440.0,0.02775221]
[1737327123578,0.3608,102490.0,102420.0,0.00010003]
[1737327123579,0.3608,102450.0,102420.0,0.17180571]
[1737327123981,0.3608,102430.0,102420.0,0.17180571]
[1737327124277,0.048846,102480.0,102420.0,0.17180571]
[1737327124482,0.3608,102430.0,102420.0,0.17180571]
[1737327124979,0.3608,102440.0,102420.0,0.17180571]
[1737327125285,0.409609,102560.0,102460.0,0.3608]
[1737327125481,0.3309,102550.0,102510.0,0.53250568]
[1737327125780,0.6917,102550.0,102510.0,0.53250568]
[1737327125985,0.6917,102550.0,102520.0,0.3608]
[1737327126182,0.6917,102550.0,102510.0,0.53250568]
[1737327126487,0.3608,102540.0,102510.0,0.53250568]
[1737327126683,0.6917,102550.0,102520.0,0.3608]
[1737327127183,0.6917,102550.0,102530.0,0.17170568]
[1737327127184,0.3309,102550.0,102530.0,0.17170568]
[1737327127488,0.3233,102570.0,102530.0,0.53250568]
[1737327127674,0.3179,102580.0,102560.0,0.17170568]
[1737327128382,0.3179,102580.0,102560.0,0.53250568]
[1737327128787,0.3133,102590.0,102570.0,0.3608]
[1737327128981,0.3133,102590.0,102580.0,0.53250568]
[1737327129182,0.3133,102590.0,102580.0,0.17170568]
[1737327130684,0.00052001,102610.0,102580.0,0.53250568]
[1737327130883,0.6613,102620.0,102600.0,0.17170568]
[1737327131484,0.3005,102620.0,102600.0,0.17170568]
[1737327131680,0.6613,102620.0,102600.0,0.17170568]
[1737327131984,0.04879,102600.0,102560.0,0.53250568]
[1737327132193,0.3235,102590.0,102580.0,0.17170568]
[1737327132484,0.6843,102590.0,102570.0,0.53250568]
[1737327132790,0.3235,102590.0,102570.0,0.53250568]
[1737327133091,0.3235,102590.0,102580.0,0.3608]
[1737327133685,0.048799,102580.0,102530.0,0.53250568]
[1737327133990,0.3608,102540.0,102530.0,0.17170568]
[1737327134381,0.3608,102540.0,102510.0,0.53263011]
[1737327135080,0.3608,102540.0,102520.0,0.3608]
[1737327135285,0.048808,102560.0,102510.0,0.53263011]
[1737327135485,0.048808,102560.0,102510.0,0.00012443]
[1737327135486,0.3608,102520.0,102510.0,0.00012443]
[1737327135689,0.3608,102520.0,102470.0,0.53396907]
[1737327135885,0.3608,102520.0,102490.0,0.17170568]
[1737327136294,0.048818,102540.0,102510.0,0.17170568]
[1737327136295,0.3608,102540.0,102510.0,0.17170568]
[1737327136484,0.3608,102540.0,102520.0,0.3608]
[1737327136685,0.00011093,102530.0,102520.0,0.3608]
[1737327136992,0.00011093,102530.0,102510.0,0.53250568]
[1737327137492,0.00011093,102530.0,102520.0,0.3608]
[1737327137687,0.00011093,102530.0,102500.0,0.3608]
[1737327137887,8.045e-05,102520.0,102500.0,0.3608]
[1737327138289,8.045e-05,102520.0,102490.0,0.53250568]
[1737327138489,0.3608,102510.0,102490.0,0.53250568]
[1737327138691,0.85501173,102560.0,102490.0,0.53250568]
[1737327138692,0.00052001,102560.0,102500.0,0.3608]
[1737327138882,0.3608,102560.0,102540.0,0.1267399]
[1737327139093,0.3608,102570.0,102540.0,0.1267399]
[1737327139488,0.3608,102580.0,102540.0,0.1413799]
[1737327139791,0.3608,102590.0,102560.0,0.1267399]
[1737327139792,4.398e-05,102570.0,102560.0,0.1267399]
[1737327140194,0.37767695,102620.0,102560.0,0.7875399]
[1737327140394,0.64342001,102630.0,102580.0,0.4875399]
[1737327140595,0.3608,102690.0,102600.0,0.4875399]
[1737327140891,0.048756,102670.0,102640.0,0.3608]
[1737327141095,0.5363009,102660.0,102620.0,0.3608]
[1737327141286,0.3608,102650.0,102630.0,0.3608]
[1737327141493,0.3608,102640.0,102600.0,0.4875399]
[1737327141687,0.04879,102600.0,102570.0,0.3608]
[1737327141885,0.3608,102580.0,102560.0,0.3623815]
[1737327142095,0.048794,102590.0,102560.0,0.3623815]
[1737327142696,0.409599,102580.0,102560.0,0.3623815]
[1737327142990,0.409605,102570.0,102530.0,0.3608]
[1737327143195,0.4875399,102580.0,102500.0,0.4875399]
[1737327143196,0.3608,102540.0,102500.0,0.4875399]
[1737327143390,0.1755519,102560.0,102520.0,0.4875399]
[1737327143391,0.048812,102560.0,102520.0,0.4875399]
[1737327143594,0.3608,102560.0,102520.0,0.3608]
[1737327143806,0.048806,102570.0,102540.0,0.048816]
[1737327143998,0.3608,102560.0,102540.0,0.048816]
[1737327144195,0.048808,102560.0,102540.0,0.048816]
[1737327144590,0.3608,102550.0,102540.0,0.048816]
[1737327144887,0.048808,102560.0,102550.0,0.048812]
[1737327145090,0.409608,102560.0,102530.0,0.3608]
[1737327145290,0.3608,102550.0,102520.0,0.3608]
[1737327145794,0.048808,102560.0,102530.0,0.3608]
[1737327146095,0.688,102580.0,102550.0,0.3608]
[1737327146393,0.3608,102610.0,102570.0,0.3608]
[1737327146597,0.88552,102620.0,102580.0,0.3608]
[1737327146890,0.3608,102630.0,102580.0,0.3608]
[1737327147095,0.3608,102630.0,102610.0,0.3608]
[1737327147290,0.7158,102650.0,102610.0,0.53220382]
[1737327147690,0.3608,102660.0,102620.0,0.3608]
[1737327147897,0.3608,102660.0,102630.0,0.3608]
[1737327148199,0.88604001,102670.0,102630.0,0.53220382]
[1737327148200,0.52524001,102670.0,102630.0,0.53220382]
[1737327148396,0.37728211,102680.0,102650.0,0.17140382]
[1737327148690,0.01648211,102680.0,102670.0,0.3608]
[1737327148897,0.3608,102710.0,102670.0,0.3608]
[1737327149286,0.3608,102710.0,102690.0,0.3608]
[1737327149699,0.3773823,102730.0,102690.0,0.3608]
[1737327150199,0.3608,102730.0,102700.0,0.3608]
[1737327150495,0.3608,102740.0,102700.0,0.53220382]
[1737327150888,0.3608,102740.0,102710.0,0.3608]
[1737327151194,0.3608,102750.0,102720.0,0.53220382]
[1737327151701,0.3608,102750.0,102690.0,0.01464]
[1737327151702,0.3608,102770.0,102740.0,0.53220382]
[1737327152198,0.3608,102770.0,102720.0,0.3608]
[1737327152199,0.3608,102750.0,102720.0,0.3608]
[1737327152697,0.3608,102750.0,102710.0,0.17140382]
[1737327152698,0.3608,102740.0,102710.0,0.17140382]
[1737327152896,0.3608,102730.0,102690.0,0.3608]
[1737327153097,0.7216,102700.0,102650.0,0.17297863]
[1737327153396,0.3608,102700.0,102650.0,0.53377863]
[1737327153700,0.3608,102710.0,102690.0,0.17140382]
[1737327154195,0.3608,102730.0,102690.0,0.17140382]
[1737327154399,0.3608,102730.0,102710.0,0.17140382]
[1737327154599,0.409509,102770.0,102710.0,0.53220382]
[1737327154805,0.3608,102750.0,102730.0,0.17140382]
[1737327154997,0.3608,102760.0,102730.0,0.17140382]
[1737327155205,0.3608,102770.0,102730.0,0.17140382]
[1737327155500,0.3608,102760.0,102730.0,0.17140382]
[1737327155699,0.409505,102780.0,102730.0,0.17140382]
[1737327155904,0.389505,102780.0,102730.0,0.17140382]
[1737327156090,0.3608,102760.0,102730.0,0.53220382]
[1737327156297,1.084998,102790.0,102750.0,0.17140382]
[1737327156691,0.3608,102780.0,102770.0,0.17140382]
[1737327157091,0.3608,102790.0,102770.0,0.17140382]
[1737327157795,0.3608,102790.0,102770.0,0.53220382]
[1737327158396,0.4608,102800.0,102770.0,0.17140382]
[1737327158597,0.4608,102800.0,102790.0,0.17140382]
[1737327158806,0.1,102800.0,102790.0,0.53220382]
[1737327158994,0.1,102800.0,102790.0,0.17140382]
[1737327159198,0.1,102800.0,102790.0,0.53220382]
[1737327159705,0.09991955,102800.0,102790.0,0.53220382]
[1737327160203,0.08183042,102820.0,102790.0,0.53220382]
[1737327160395,0.08183042,102820.0,102810.0,0.53220382]